[Event "Titled Tuesday Blitz February 28 Late 2023"]
[White "Hambleton, Aman"]
[Black "Vlassov, Nikolai"]
[WhiteFideId "2606577"]
[BlackFideId "4103360"]
[WhiteElo "2511"]
[BlackElo "2324"]
[Result "1/2-1/2"]
[Round "09"]
[TimeControl "180+2"]
[Date "2023.02.28"]
[WhiteClock "0:00:04"]
[BlackClock "0:00:50"]

1. d4 {[%clk 0:02:58]}  Nf6 {[%clk 0:02:59]} 2. c4 {[%clk 0:02:49]}  Nc6 {[%clk 0:02:59]} 3. Nf3 {[%clk 0:02:45]}  e6 {[%clk 0:02:59]} 4. a3 {[%clk 0:02:45]}  g6 {[%clk 0:02:58]} 5. Nc3 {[%clk 0:02:43]}  Bg7 {[%clk 0:02:59]} 6. e4 {[%clk 0:02:43]}  d6 {[%clk 0:02:59]} 7. Bd3 {[%clk 0:02:21]}  O-O {[%clk 0:02:55]} 8. O-O {[%clk 0:02:22]}  e5 {[%clk 0:02:55]} 9. d5 {[%clk 0:02:21]}  Ne7 {[%clk 0:02:51]} 10. Nd2 {[%clk 0:01:23]}  Nh5 {[%clk 0:02:47]} 11. Re1 {[%clk 0:01:00]}  f5 {[%clk 0:02:39]} 12. exf5 {[%clk 0:00:49]}  Nf4 {[%clk 0:02:39]} 13. Bf1 {[%clk 0:00:48]}  Bxf5 {[%clk 0:02:33]} 14. Nde4 {[%clk 0:00:47]}  Qd7 {[%clk 0:02:27]} 15. Be3 {[%clk 0:00:44]}  h6 {[%clk 0:02:22]} 16. c5 {[%clk 0:00:39]}  a6 {[%clk 0:02:20]} 17. cxd6 {[%clk 0:00:25]}  cxd6 {[%clk 0:02:19]} 18. Qb3 {[%clk 0:00:23]}  Kh7 {[%clk 0:02:13]} 19. Rad1 {[%clk 0:00:23]}  g5 {[%clk 0:01:57]} 20. Qb4 {[%clk 0:00:20]}  Nc8 {[%clk 0:01:49]} 21. a4 {[%clk 0:00:15]}  Rf7 {[%clk 0:01:46]} 22. a5 {[%clk 0:00:14]}  Bf8 {[%clk 0:01:46]} 23. Qc4 {[%clk 0:00:08]}  Ne7 {[%clk 0:01:43]} 24. Na4 {[%clk 0:00:09]}  Rc8 {[%clk 0:01:37]} 25. Qb4 {[%clk 0:00:02]}  Nexd5 {[%clk 0:01:34]} 26. Qb3 {[%clk 0:00:01]}  Be6 {[%clk 0:01:28]} 27. Nb6 {[%clk 0:00:01]}  Nxb6 {[%clk 0:01:27]} 28. Qxb6 {[%clk 0:00:02]}  d5 {[%clk 0:01:22]} 29. Nc5 {[%clk 0:00:02]}  Bxc5 {[%clk 0:01:21]} 30. Bxc5 {[%clk 0:00:03]}  Qc6 {[%clk 0:01:16]} 31. b4 {[%clk 0:00:02]}  Qxb6 {[%clk 0:01:14]} 32. Bxb6 {[%clk 0:00:03]}  e4 {[%clk 0:01:10]} 33. Rc1 {[%clk 0:00:03]}  Rff8 {[%clk 0:01:09]} 34. Bc5 {[%clk 0:00:02]}  Rfd8 {[%clk 0:01:05]} 35. Red1 {[%clk 0:00:03]}  Kg6 {[%clk 0:01:04]} 36. h3 {[%clk 0:00:03]}  Bf5 {[%clk 0:01:03]} 37. Bb6 {[%clk 0:00:02]}  Rxc1 {[%clk 0:01:01]} 38. Rxc1 {[%clk 0:00:02]}  Rc8 {[%clk 0:01:02]} 39. Rxc8 {[%clk 0:00:03]}  Bxc8 {[%clk 0:01:02]} 40. Kh2 {[%clk 0:00:02]}  Kf5 {[%clk 0:01:00]} 41. b5 {[%clk 0:00:02]}  Ke5 {[%clk 0:01:00]} 42. bxa6 {[%clk 0:00:01]}  bxa6 {[%clk 0:01:00]} 43. g3 {[%clk 0:00:01]}  Ne6 {[%clk 0:00:59]} 44. h4 {[%clk 0:00:01]}  d4 {[%clk 0:00:59]} 45. hxg5 {[%clk 0:00:02]}  hxg5 {[%clk 0:00:58]} 46. Bh3 {[%clk 0:00:02]}  Bd7 {[%clk 0:00:51]} 47. Kg1 {[%clk 0:00:02]}  Bb5 {[%clk 0:00:51]} 48. Bxe6 {[%clk 0:00:02]}  Kxe6 {[%clk 0:00:50]} 49. Bxd4 {[%clk 0:00:03]}  Kf5 {[%clk 0:00:50]} 50. Kg2 {[%clk 0:00:02]}  Kg4 {[%clk 0:00:50]} 51. Be3 {[%clk 0:00:03]}  Be2 {[%clk 0:00:50]} 52. Kg1 {[%clk 0:00:03]}  Kf5 {[%clk 0:00:49]} 53. Kh2 {[%clk 0:00:03]}  Bf1 {[%clk 0:00:49]} 54. Kg1 {[%clk 0:00:04]}  Be2 {[%clk 0:00:49]} 55. Kh2 {[%clk 0:00:04]}  Kg4 {[%clk 0:00:49]} 56. Kg1 {[%clk 0:00:04]}  Kf5 {[%clk 0:00:50]} 1/2-1/2


[Site "https://www.chess.com"]

[Event "Titled Tuesday Blitz February 28 Late 2023"]
[White "Haydon, David L"]
[Black "Salimova, Nurgyul"]
[WhiteFideId "415405"]
[BlackFideId "2915138"]
[WhiteElo "2326"]
[BlackElo "2314"]
[Result "1-0"]
[Round "09"]
[TimeControl "180+2"]
[Date "2023.02.28"]
[WhiteClock "0:00:15"]
[BlackClock "0:00:03"]

1. Nf3 {[%clk 0:03:00]}  d5 {[%clk 0:02:59]} 2. e3 {[%clk 0:03:00]}  Nf6 {[%clk 0:02:58]} 3. b3 {[%clk 0:03:00]}  Bg4 {[%clk 0:02:56]} 4. Bb2 {[%clk 0:02:59]}  Nc6 {[%clk 0:02:57]} 5. h3 {[%clk 0:02:59]}  Bxf3 {[%clk 0:02:56]} 6. Qxf3 {[%clk 0:02:57]}  e5 {[%clk 0:02:55]} 7. Bb5 {[%clk 0:02:56]}  Bd6 {[%clk 0:02:53]} 8. c4 {[%clk 0:02:55]}  O-O {[%clk 0:02:46]} 9. Bxc6 {[%clk 0:02:40]}  bxc6 {[%clk 0:02:46]} 10. Nc3 {[%clk 0:02:39]}  e4 {[%clk 0:02:22]} 11. Qe2 {[%clk 0:02:35]}  Qe7 {[%clk 0:02:18]} 12. cxd5 {[%clk 0:02:31]}  cxd5 {[%clk 0:02:17]} 13. O-O {[%clk 0:02:24]}  Qe5 {[%clk 0:02:12]} 14. g3 {[%clk 0:02:08]}  Qf5 {[%clk 0:02:10]} 15. Kg2 {[%clk 0:02:07]}  c6 {[%clk 0:02:04]} 16. f4 {[%clk 0:02:04]}  exf3+ {[%clk 0:02:03]} 17. Rxf3 {[%clk 0:02:04]}  Qe6 {[%clk 0:02:02]} 18. Raf1 {[%clk 0:01:57]}  Nd7 {[%clk 0:01:59]} 19. Na4 {[%clk 0:01:52]}  Ne5 {[%clk 0:01:56]} 20. Bxe5 {[%clk 0:01:51]}  Qxe5 {[%clk 0:01:57]} 21. Qa6 {[%clk 0:01:48]}  c5 {[%clk 0:01:21]} 22. d4 {[%clk 0:01:39]}  cxd4 {[%clk 0:01:14]} 23. exd4 {[%clk 0:01:39]}  Qe7 {[%clk 0:01:08]} 24. Nc3 {[%clk 0:01:35]}  Rad8 {[%clk 0:01:03]} 25. Nxd5 {[%clk 0:01:20]}  Qe4 {[%clk 0:01:03]} 26. Qc6 {[%clk 0:01:19]}  Qxd4 {[%clk 0:00:59]} 27. Ne3 {[%clk 0:01:08]}  Qe5 {[%clk 0:00:15]} 28. Nc4 {[%clk 0:01:06]}  Qc5 {[%clk 0:00:12]} 29. Qxc5 {[%clk 0:01:05]}  Bxc5 {[%clk 0:00:13]} 30. Re1 {[%clk 0:01:03]}  g6 {[%clk 0:00:13]} 31. Re5 {[%clk 0:01:01]}  Bd4 {[%clk 0:00:12]} 32. Re2 {[%clk 0:01:00]}  Rfe8 {[%clk 0:00:11]} 33. Rxe8+ {[%clk 0:00:58]}  Rxe8 {[%clk 0:00:12]} 34. Rd3 {[%clk 0:00:58]}  Bc5 {[%clk 0:00:11]} 35. Rd2 {[%clk 0:00:56]}  h5 {[%clk 0:00:08]} 36. Kf3 {[%clk 0:00:56]}  Kg7 {[%clk 0:00:08]} 37. Rd5 {[%clk 0:00:56]}  Bg1 {[%clk 0:00:08]} 38. Kg2 {[%clk 0:00:53]}  Bb6 {[%clk 0:00:06]} 39. a4 {[%clk 0:00:49]}  Re6 {[%clk 0:00:03]} 40. Kf3 {[%clk 0:00:49]}  Bc7 {[%clk 0:00:03]} 41. g4 {[%clk 0:00:48]}  h4 {[%clk 0:00:03]} 42. g5 {[%clk 0:00:46]}  Bg3 {[%clk 0:00:03]} 43. b4 {[%clk 0:00:44]}  Re1 {[%clk 0:00:04]} 44. Ne3 {[%clk 0:00:40]}  Rh1 {[%clk 0:00:03]} 45. Ng4 {[%clk 0:00:33]}  Rf1+ {[%clk 0:00:03]} 46. Kg2 {[%clk 0:00:32]}  Rf5 {[%clk 0:00:03]} 47. Rxf5 {[%clk 0:00:19]}  gxf5 {[%clk 0:00:04]} 48. Ne3 {[%clk 0:00:17]}  Kg6 {[%clk 0:00:05]} 49. Nf1 {[%clk 0:00:16]}  Bd6 {[%clk 0:00:04]} 50. b5 {[%clk 0:00:15]}  Kxg5 {[%clk 0:00:03]} 51. Kf3 {[%clk 0:00:16]}  Bb4 {[%clk 0:00:03]} 52. Ne3 {[%clk 0:00:16]}  f4 {[%clk 0:00:03]} 53. Nd5 {[%clk 0:00:17]}  Bd2 {[%clk 0:00:03]} 54. Ne7 {[%clk 0:00:16]}  Kf6 {[%clk 0:00:03]} 55. Nc6 {[%clk 0:00:16]}  Be3 {[%clk 0:00:02]} 56. a5 {[%clk 0:00:17]}  Ke6 {[%clk 0:00:03]} 57. Nxa7 {[%clk 0:00:15]}  Bxa7 {[%clk 0:00:03]} 58. b6 {[%clk 0:00:16]}  Bb8 {[%clk 0:00:02]} 59. a6 {[%clk 0:00:16]}  Kd7 {[%clk 0:00:02]} 60. a7 {[%clk 0:00:16]}  Kc8 {[%clk 0:00:03]} 61. a8=Q {[%clk 0:00:15]} 1-0


[Site "https://www.chess.com"]

[Event "Titled Tuesday Blitz February 28 Late 2023"]
[White "EREBUNI91"]
[Black "Jimenez Almeida, Luis David"]
[BlackFideId "22242244"]
[WhiteElo "2720"]
[BlackElo "2245"]
[Result "1-0"]
[Round "09"]
[TimeControl "180+2"]
[Date "2023.02.28"]
[WhiteClock "0:00:04"]
[BlackClock "0:00:01"]

1. e4 {[%clk 0:02:47]}  c6 {[%clk 0:02:58]} 2. d4 {[%clk 0:02:46]}  Na6 {[%clk 0:02:59]} 3. Nc3 {[%clk 0:02:33]}  Nc7 {[%clk 0:02:58]} 4. Nf3 {[%clk 0:02:33]}  g6 {[%clk 0:02:57]} 5. Be3 {[%clk 0:02:32]}  Bg7 {[%clk 0:02:58]} 6. Qd2 {[%clk 0:02:32]}  d6 {[%clk 0:02:58]} 7. h4 {[%clk 0:02:29]}  h5 {[%clk 0:02:58]} 8. Bc4 {[%clk 0:02:25]}  Nf6 {[%clk 0:02:57]} 9. O-O-O {[%clk 0:02:20]}  b5 {[%clk 0:02:54]} 10. Bd3 {[%clk 0:02:18]}  Ng4 {[%clk 0:02:47]} 11. Bg5 {[%clk 0:01:40]}  O-O {[%clk 0:02:44]} 12. e5 {[%clk 0:01:25]}  Be6 {[%clk 0:01:52]} 13. Rhe1 {[%clk 0:01:19]}  Re8 {[%clk 0:01:38]} 14. Ne4 {[%clk 0:01:02]}  dxe5 {[%clk 0:01:32]} 15. dxe5 {[%clk 0:01:00]}  Qd5 {[%clk 0:01:09]} 16. Nc3 {[%clk 0:00:53]}  Qc5 {[%clk 0:01:05]} 17. Be3 {[%clk 0:00:22]}  Nxe3 {[%clk 0:01:03]} 18. Qxe3 {[%clk 0:00:22]}  Qb4 {[%clk 0:00:35]} 19. Qe4 {[%clk 0:00:17]}  Qa5 {[%clk 0:00:27]} 20. Qxc6 {[%clk 0:00:14]}  Rec8 {[%clk 0:00:21]} 21. Nxb5 {[%clk 0:00:10]}  Nxb5 {[%clk 0:00:17]} 22. Qxb5 {[%clk 0:00:09]}  Qxa2 {[%clk 0:00:18]} 23. Qa6 {[%clk 0:00:06]}  Qb3 {[%clk 0:00:10]} 24. Nd4 {[%clk 0:00:04]}  Qb6 {[%clk 0:00:02]} 25. Qxb6 {[%clk 0:00:04]}  axb6 {[%clk 0:00:03]} 26. Nxe6 {[%clk 0:00:05]}  fxe6 {[%clk 0:00:01]} 27. c3 {[%clk 0:00:05]}  Kf7 {[%clk 0:00:01]} 28. Kc2 {[%clk 0:00:05]}  Rc5 {[%clk 0:00:01]} 29. Re3 {[%clk 0:00:03]}  Rd8 {[%clk 0:00:01]} 30. Rf3+ {[%clk 0:00:04]} 1-0


[Site "https://www.chess.com"]

[Event "Titled Tuesday Blitz February 28 Late 2023"]
[White "Preotu, Razvan"]
[Black "Plotkin, Victor"]
[WhiteFideId "2613280"]
[BlackFideId "2606674"]
[WhiteElo "2407"]
[BlackElo "2214"]
[Result "1-0"]
[Round "09"]
[TimeControl "180+2"]
[Date "2023.02.28"]
[WhiteClock "0:00:31"]
[BlackClock "0:00:07"]

1. e4 {[%clk 0:03:00]}  e5 {[%clk 0:03:00]} 2. Nf3 {[%clk 0:03:00]}  Nf6 {[%clk 0:03:01]} 3. Nxe5 {[%clk 0:02:56]}  d6 {[%clk 0:03:01]} 4. Nf3 {[%clk 0:02:56]}  Nxe4 {[%clk 0:03:01]} 5. d3 {[%clk 0:02:53]}  Nf6 {[%clk 0:03:01]} 6. d4 {[%clk 0:02:53]}  d5 {[%clk 0:03:01]} 7. Bd3 {[%clk 0:02:53]}  Bd6 {[%clk 0:03:01]} 8. Qe2+ {[%clk 0:02:52]}  Qe7 {[%clk 0:03:00]} 9. Qxe7+ {[%clk 0:02:51]}  Bxe7 {[%clk 0:03:00]} 10. Bf4 {[%clk 0:02:49]}  c6 {[%clk 0:02:59]} 11. O-O {[%clk 0:02:49]}  O-O {[%clk 0:02:58]} 12. Re1 {[%clk 0:02:49]}  Re8 {[%clk 0:02:52]} 13. Nbd2 {[%clk 0:02:44]}  h6 {[%clk 0:02:51]} 14. Re2 {[%clk 0:02:41]}  Be6 {[%clk 0:02:43]} 15. a4 {[%clk 0:01:56]}  Nbd7 {[%clk 0:02:41]} 16. a5 {[%clk 0:01:56]}  a6 {[%clk 0:02:36]} 17. Nb3 {[%clk 0:01:54]}  Bg4 {[%clk 0:02:17]} 18. Rae1 {[%clk 0:01:53]}  Bb4 {[%clk 0:02:01]} 19. Rxe8+ {[%clk 0:01:45]}  Rxe8 {[%clk 0:02:01]} 20. c3 {[%clk 0:01:43]}  Bxf3 {[%clk 0:01:49]} 21. Rxe8+ {[%clk 0:01:43]}  Nxe8 {[%clk 0:01:49]} 22. cxb4 {[%clk 0:01:42]}  Be4 {[%clk 0:01:41]} 23. Be2 {[%clk 0:01:35]}  g5 {[%clk 0:01:35]} 24. Bd2 {[%clk 0:01:14]}  Bc2 {[%clk 0:01:29]} 25. Nc5 {[%clk 0:00:58]}  Nxc5 {[%clk 0:01:17]} 26. bxc5 {[%clk 0:00:59]}  Bf5 {[%clk 0:01:02]} 27. g4 {[%clk 0:00:56]}  Be6 {[%clk 0:00:59]} 28. f4 {[%clk 0:00:56]}  f6 {[%clk 0:00:58]} 29. h4 {[%clk 0:00:53]}  gxh4 {[%clk 0:00:31]} 30. f5 {[%clk 0:00:53]}  Bd7 {[%clk 0:00:28]} 31. Bxh6 {[%clk 0:00:53]}  Nc7 {[%clk 0:00:26]} 32. Kh2 {[%clk 0:00:50]}  Nb5 {[%clk 0:00:25]} 33. Be3 {[%clk 0:00:50]}  Kg7 {[%clk 0:00:19]} 34. Kh3 {[%clk 0:00:50]}  Be8 {[%clk 0:00:20]} 35. Kxh4 {[%clk 0:00:50]}  Bf7 {[%clk 0:00:20]} 36. g5 {[%clk 0:00:42]}  fxg5+ {[%clk 0:00:16]} 37. Kxg5 {[%clk 0:00:43]}  Bg8 {[%clk 0:00:13]} 38. Bf4 {[%clk 0:00:37]}  Kf7 {[%clk 0:00:11]} 39. Bh5+ {[%clk 0:00:36]}  Ke7 {[%clk 0:00:11]} 40. f6+ {[%clk 0:00:36]}  Ke6 {[%clk 0:00:11]} 41. Be5 {[%clk 0:00:34]}  Bh7 {[%clk 0:00:08]} 42. f7 {[%clk 0:00:31]}  Ke7 {[%clk 0:00:07]} 43. Bg7 {[%clk 0:00:31]} 1-0


[Site "https://www.chess.com"]

[Event "Titled Tuesday Blitz February 28 Late 2023"]
[White "Kovalevsky, Stanislav"]
[Black "Jaracz, Pawel"]
[WhiteFideId "13508598"]
[BlackFideId "1102222"]
[WhiteElo "2220"]
[BlackElo "2438"]
[Result "0-1"]
[Round "09"]
[TimeControl "180+2"]
[Date "2023.02.28"]
[WhiteClock "0:00:07"]
[BlackClock "0:00:35"]

1. c4 {[%clk 0:03:00]}  e5 {[%clk 0:02:58]} 2. Nc3 {[%clk 0:03:01]}  Nc6 {[%clk 0:02:58]} 3. g3 {[%clk 0:03:01]}  d6 {[%clk 0:02:58]} 4. Bg2 {[%clk 0:03:02]}  Be6 {[%clk 0:02:58]} 5. d3 {[%clk 0:02:58]}  Qd7 {[%clk 0:02:58]} 6. a3 {[%clk 0:02:53]}  h5 {[%clk 0:02:56]} 7. b4 {[%clk 0:02:52]}  h4 {[%clk 0:02:55]} 8. b5 {[%clk 0:02:51]}  Nd8 {[%clk 0:02:55]} 9. Bg5 {[%clk 0:02:46]}  Be7 {[%clk 0:02:53]} 10. gxh4 {[%clk 0:02:44]}  f6 {[%clk 0:02:51]} 11. Be3 {[%clk 0:02:36]}  Rxh4 {[%clk 0:02:50]} 12. Qd2 {[%clk 0:02:33]}  c6 {[%clk 0:02:40]} 13. bxc6 {[%clk 0:02:14]}  bxc6 {[%clk 0:02:40]} 14. Rb1 {[%clk 0:02:12]}  d5 {[%clk 0:02:20]} 15. d4 {[%clk 0:01:50]}  e4 {[%clk 0:02:05]} 16. Bf4 {[%clk 0:01:30]}  Nh6 {[%clk 0:01:49]} 17. Bg3 {[%clk 0:01:22]}  Rh5 {[%clk 0:01:49]} 18. a4 {[%clk 0:01:10]}  Nf5 {[%clk 0:01:48]} 19. e3 {[%clk 0:01:07]}  Nh4 {[%clk 0:01:35]} 20. Bf1 {[%clk 0:00:51]}  Kf7 {[%clk 0:01:14]} 21. Bxh4 {[%clk 0:00:29]}  Rxh4 {[%clk 0:01:14]} 22. Nge2 {[%clk 0:00:29]}  g5 {[%clk 0:01:10]} 23. Ng3 {[%clk 0:00:14]}  Nb7 {[%clk 0:01:05]} 24. cxd5 {[%clk 0:00:13]}  cxd5 {[%clk 0:01:06]} 25. Bb5 {[%clk 0:00:12]}  Qc7 {[%clk 0:01:00]} 26. Rc1 {[%clk 0:00:08]}  Bb4 {[%clk 0:01:00]} 27. Kf1 {[%clk 0:00:07]}  Rc8 {[%clk 0:00:35]} 0-1


[Site "https://www.chess.com"]

[Event "Titled Tuesday Blitz February 28 Late 2023"]
[White "Matinian, Nikita"]
[Black "Ramirez Allo, Eduardo"]
[WhiteFideId "24129100"]
[BlackFideId "2224178"]
[WhiteElo "2422"]
[BlackElo "2477"]
[Result "1-0"]
[Round "09"]
[TimeControl "180+2"]
[Date "2023.02.28"]
[WhiteClock "0:01:03"]
[BlackClock "0:00:06"]

1. e4 {[%clk 0:02:56]}  c5 {[%clk 0:03:00]} 2. Nf3 {[%clk 0:02:55]}  d6 {[%clk 0:02:57]} 3. d4 {[%clk 0:02:54]}  cxd4 {[%clk 0:02:58]} 4. Nxd4 {[%clk 0:02:52]}  Nf6 {[%clk 0:02:58]} 5. Nc3 {[%clk 0:02:51]}  a6 {[%clk 0:02:59]} 6. h3 {[%clk 0:02:50]}  e5 {[%clk 0:02:59]} 7. Nb3 {[%clk 0:02:49]}  Be6 {[%clk 0:02:58]} 8. f4 {[%clk 0:02:49]}  Qc7 {[%clk 0:02:54]} 9. Qf3 {[%clk 0:02:37]}  Be7 {[%clk 0:02:42]} 10. g4 {[%clk 0:02:33]}  h6 {[%clk 0:02:33]} 11. Rg1 {[%clk 0:02:18]}  exf4 {[%clk 0:02:28]} 12. Bxf4 {[%clk 0:02:17]}  Nc6 {[%clk 0:02:25]} 13. O-O-O {[%clk 0:02:17]}  Ne5 {[%clk 0:02:24]} 14. Qg3 {[%clk 0:02:17]}  Nfd7 {[%clk 0:02:09]} 15. Nd5 {[%clk 0:02:15]}  Bxd5 {[%clk 0:02:07]} 16. exd5 {[%clk 0:02:16]}  Rc8 {[%clk 0:02:02]} 17. Rg2 {[%clk 0:02:14]}  g6 {[%clk 0:01:31]} 18. Kb1 {[%clk 0:02:09]}  h5 {[%clk 0:01:28]} 19. c3 {[%clk 0:01:57]}  hxg4 {[%clk 0:01:15]} 20. hxg4 {[%clk 0:01:58]}  Kf8 {[%clk 0:01:15]} 21. Nd4 {[%clk 0:01:51]}  b5 {[%clk 0:00:55]} 22. Rh2 {[%clk 0:01:51]}  Rg8 {[%clk 0:00:19]} 23. Rh7 {[%clk 0:01:50]}  Qc5 {[%clk 0:00:16]} 24. Bg2 {[%clk 0:01:16]}  b4 {[%clk 0:00:15]} 25. Nc6 {[%clk 0:01:15]}  bxc3 {[%clk 0:00:13]} 26. Qxc3 {[%clk 0:01:14]}  Qxc3 {[%clk 0:00:12]} 27. bxc3 {[%clk 0:01:15]}  Bf6 {[%clk 0:00:07]} 28. Kc2 {[%clk 0:01:12]}  Rh8 {[%clk 0:00:07]} 29. Rxh8+ {[%clk 0:01:10]}  Bxh8 {[%clk 0:00:08]} 30. Rb1 {[%clk 0:01:07]}  Kg8 {[%clk 0:00:06]} 31. Ne7+ {[%clk 0:01:03]} 1-0


[Site "https://www.chess.com"]

[Event "Titled Tuesday Blitz February 28 Late 2023"]
[White "Saveliev, Alexei"]
[Black "Aung Thant Zin"]
[WhiteFideId "24128546"]
[BlackFideId "13000063"]
[WhiteElo "2271"]
[BlackElo "2278"]
[Result "1-0"]
[Round "09"]
[TimeControl "180+2"]
[Date "2023.02.28"]
[WhiteClock "0:02:04"]
[BlackClock "0:01:02"]

1. c4 {[%clk 0:02:56]}  e5 {[%clk 0:02:59]} 2. Nc3 {[%clk 0:02:52]}  Nf6 {[%clk 0:02:59]} 3. Nf3 {[%clk 0:02:53]}  Nc6 {[%clk 0:02:59]} 4. e3 {[%clk 0:02:53]}  Bb4 {[%clk 0:02:57]} 5. Qc2 {[%clk 0:02:54]}  O-O {[%clk 0:02:56]} 6. Nd5 {[%clk 0:02:53]}  h6 {[%clk 0:02:41]} 7. Qf5 {[%clk 0:02:46]}  Be7 {[%clk 0:02:15]} 8. Nxe5 {[%clk 0:02:39]}  d6 {[%clk 0:02:05]} 9. Nxc6 {[%clk 0:02:38]}  bxc6 {[%clk 0:02:00]} 10. Nxe7+ {[%clk 0:02:33]}  Qxe7 {[%clk 0:02:00]} 11. Qc2 {[%clk 0:02:33]}  c5 {[%clk 0:01:54]} 12. Be2 {[%clk 0:02:28]}  Bb7 {[%clk 0:01:53]} 13. Bf3 {[%clk 0:02:26]}  Bxf3 {[%clk 0:01:51]} 14. gxf3 {[%clk 0:02:27]}  Nd7 {[%clk 0:01:48]} 15. b3 {[%clk 0:02:19]}  Qf6 {[%clk 0:01:48]} 16. Bb2 {[%clk 0:02:16]}  Qxf3 {[%clk 0:01:47]} 17. Rg1 {[%clk 0:02:17]}  Ne5 {[%clk 0:01:22]} 18. Rg3 {[%clk 0:02:12]}  Qh1+ {[%clk 0:01:13]} 19. Ke2 {[%clk 0:02:12]}  Qxh2 {[%clk 0:01:13]} 20. Rag1 {[%clk 0:02:13]}  Ng6 {[%clk 0:01:10]} 21. Qf5 {[%clk 0:02:06]}  Rae8 {[%clk 0:01:02]} 22. Bxg7 {[%clk 0:02:04]} 1-0


[Site "https://www.chess.com"]

[Event "Titled Tuesday Blitz February 28 Late 2023"]
[White "Rustemov, Alexander"]
[Black "Rodrigues, Tiago Pereira"]
[WhiteFideId "4119002"]
[BlackFideId "2101203"]
[WhiteElo "2884"]
[BlackElo "2168"]
[Result "1/2-1/2"]
[Round "09"]
[TimeControl "180+2"]
[Date "2023.02.28"]
[WhiteClock "0:00:18"]
[BlackClock "0:00:33"]

1. d4 {[%clk 0:02:54]}  Nf6 {[%clk 0:02:57]} 2. c4 {[%clk 0:02:54]}  g6 {[%clk 0:02:57]} 3. Nf3 {[%clk 0:02:53]}  d6 {[%clk 0:02:57]} 4. g3 {[%clk 0:02:53]}  c6 {[%clk 0:02:56]} 5. Bg2 {[%clk 0:02:53]}  Bg7 {[%clk 0:02:57]} 6. Nc3 {[%clk 0:02:52]}  d5 {[%clk 0:02:57]} 7. O-O {[%clk 0:02:49]}  O-O {[%clk 0:02:57]} 8. Ne5 {[%clk 0:02:43]}  Be6 {[%clk 0:02:53]} 9. Qb3 {[%clk 0:02:30]}  Qb6 {[%clk 0:02:53]} 10. Qxb6 {[%clk 0:02:22]}  axb6 {[%clk 0:02:52]} 11. cxd5 {[%clk 0:02:21]}  Nxd5 {[%clk 0:02:36]} 12. Nxd5 {[%clk 0:02:16]}  Bxd5 {[%clk 0:02:32]} 13. Bxd5 {[%clk 0:01:57]}  cxd5 {[%clk 0:02:33]} 14. Nf3 {[%clk 0:01:46]}  Nc6 {[%clk 0:02:32]} 15. e3 {[%clk 0:01:45]}  Rfc8 {[%clk 0:02:28]} 16. Bd2 {[%clk 0:01:44]}  e5 {[%clk 0:02:21]} 17. dxe5 {[%clk 0:01:33]}  Nxe5 {[%clk 0:02:21]} 18. Nxe5 {[%clk 0:01:26]}  Bxe5 {[%clk 0:02:22]} 19. Bc3 {[%clk 0:01:26]}  Bxc3 {[%clk 0:02:21]} 20. bxc3 {[%clk 0:01:27]}  Rxc3 {[%clk 0:02:22]} 21. Rfb1 {[%clk 0:01:24]}  Ra6 {[%clk 0:02:07]} 22. Rb2 {[%clk 0:01:23]}  Rca3 {[%clk 0:01:29]} 23. Kg2 {[%clk 0:01:16]}  h5 {[%clk 0:01:25]} 24. h3 {[%clk 0:01:15]}  Kg7 {[%clk 0:01:26]} 25. Rab1 {[%clk 0:01:06]}  Rxa2 {[%clk 0:01:23]} 26. Rxa2 {[%clk 0:01:05]}  Rxa2 {[%clk 0:01:24]} 27. Rxb6 {[%clk 0:01:06]}  Ra7 {[%clk 0:01:23]} 28. Rd6 {[%clk 0:01:01]}  Kf8 {[%clk 0:01:21]} 29. Rxd5 {[%clk 0:01:00]}  Ke7 {[%clk 0:01:17]} 30. g4 {[%clk 0:00:59]}  hxg4 {[%clk 0:01:17]} 31. hxg4 {[%clk 0:01:00]}  Ke6 {[%clk 0:01:16]} 32. e4 {[%clk 0:00:55]}  b6 {[%clk 0:01:13]} 33. Kf3 {[%clk 0:00:52]}  Rb7 {[%clk 0:01:11]} 34. Rb5 {[%clk 0:00:51]}  Kd6 {[%clk 0:01:11]} 35. Ke3 {[%clk 0:00:49]}  Kc6 {[%clk 0:01:11]} 36. Rb1 {[%clk 0:00:46]}  b5 {[%clk 0:01:07]} 37. Kd4 {[%clk 0:00:44]}  Re7 {[%clk 0:01:05]} 38. f4 {[%clk 0:00:41]}  Re8 {[%clk 0:01:05]} 39. g5 {[%clk 0:00:38]}  Re7 {[%clk 0:01:05]} 40. f5 {[%clk 0:00:36]}  gxf5 {[%clk 0:01:02]} 41. exf5 {[%clk 0:00:36]}  Re2 {[%clk 0:01:00]} 42. Rg1 {[%clk 0:00:35]}  Kd6 {[%clk 0:00:53]} 43. g6 {[%clk 0:00:33]}  fxg6 {[%clk 0:00:51]} 44. Rxg6+ {[%clk 0:00:31]}  Ke7 {[%clk 0:00:48]} 45. Rb6 {[%clk 0:00:28]}  Kf7 {[%clk 0:00:37]} 46. Kd3 {[%clk 0:00:23]}  Re5 {[%clk 0:00:37]} 47. f6 {[%clk 0:00:20]}  Rf5 {[%clk 0:00:35]} 48. Ke4 {[%clk 0:00:19]}  Rxf6 {[%clk 0:00:35]} 49. Rxb5 {[%clk 0:00:18]}  Rf1 {[%clk 0:00:33]} 50. Rf5+ {[%clk 0:00:18]}  Rxf5 {[%clk 0:00:33]} 51. Kxf5 {[%clk 0:00:18]} 1/2-1/2


[Site "https://www.chess.com"]